{"text_format":"1","workbook":"xlsx","n_sheets":3,"sheets":["Prompt","Cedula3BS","Enviar"],"not_rendered":{"charts":0,"images":4,"macros":1,"external_links":0,"defined_names":0,"comments":1,"pivot_tables":0},"unopened":[],"bounds":{"document_bytes":16777216,"sheet_cells":100000,"rows_first":2000,"rows_last":500,"rows_between":2000,"halvings":0,"cell_chars":16384,"cell_head_chars":4096},"cells_cut":0,"cells_raw":0,"read":"whole","date_system":"1900"}

{"sheet":"Prompt","index":0,"n_rows":38,"n_cols":4,"rows_kept":38,"cut":false,"hidden":false,"merged":[[0,3,1,5],[3,1,5,8],[8,1,9,8],[37,1,38,8]]}
[null,null,null,"¡ATENCIÓN!"]
[]
[]
[null,"Para hacer uso de las funcionalidades de esta Cédula Electrónica debe habilitar macros"]
[]
[]
[]
[]
[null,"Si utiliza Excel 2000, 2002, 2003 siga el siguiente procedimiento:"]
[]
[]
[]
[]
[]
[]
[]
[]
[]
[]
[]
[]
[]
[]
[]
[]
[]
[]
[]
[]
[]
[]
[]
[]
[]
[]
[]
[]
[null,"Si utiliza Excel 2007 siga el siguiente procedimiento:"]

{"sheet":"Cedula3BS","index":1,"n_rows":114,"n_cols":19,"rows_kept":114,"cut":false,"hidden":true,"merged":[[42,15,42,16],[42,17,42,18],[14,5,14,17],[12,5,12,6],[23,11,23,12],[12,16,12,17],[22,2,24,6],[16,14,16,17],[16,5,16,10],[42,13,42,14],[70,16,70,18],[23,9,23,10],[0,16,0,18],[1,5,1,14],[2,5,2,14],[3,5,3,14],[1,16,3,18],[34,2,34,18],[23,13,23,14],[23,17,23,18],[23,15,23,16],[70,11,70,15],[4,2,4,3],[42,9,42,10],[22,7,23,8],[41,2,43,6],[69,16,69,18],[67,16,67,18],[68,16,68,18],[68,11,68,15],[69,11,69,15],[67,11,67,15],[70,2,70,7],[68,2,68,7],[69,2,69,7],[70,8,70,10],[69,8,69,10],[68,8,68,10],[67,8,67,10],[55,2,57,6],[42,11,42,12],[41,7,42,8],[55,7,56,8],[63,4,63,6],[67,3,67,6],[56,17,56,18],[56,13,56,14],[56,15,56,16],[52,4,52,6],[56,9,56,10],[56,11,56,12]]}
[null,null,null,null,null,null,null,null,null,null,null,null,null,null,null,null,"CÉDULA"]
[null,null,null,null,null,"CENSO EDUCATIVO 2024",null,null,null,null,null,null,null,null,null,null,"3BS"]
[null,null,null,null,null,"EDUCACIÓN BÁSICA REGULAR"]
[null,null,null,null,null,"SECUNDARIA"]
[null,null,"Versión :",null,1]
[null,null,"INSTRUCCIONES DEL FORMATO ELECTRÓNICO "]
[]
[]
[]
[null,null,"IDENTIFICACIÓN DEL SERVICIO EDUCATIVO"]
[]
[]
[null,null,"1.  CÓDIGO MODULAR :",null,null,null,null,null,null,"NÚMERO DE ANEXO : ",0,null,null,null,null,"2. CÓDIGO DE LOCAL EDUCATIVO : "]
[]
[null,null,"3.  NOMBRE DEL SERVICIO :"]
[]
[null,null,"4. DISTRITO :",null,null,null,null,null,null,null,null,null,null,"LOCALIDAD :  "]
[]
[]
[null,null,"100. RESULTADO DEL EJERCICIO EDUCATIVO"]
[null,null,"Complete y remita esta sección entre diciembre del año 2024 y enero del año 2025."]
[null,null,"101 - RESULTADO DEL EJERCICIO EDUCATIVO A DICIEMBRE DE 2024, POR GRADO DE ESTUDIO Y SEXO"]
[null,null,"SITUACIÓN",null,null,null,null,"TOTAL",null,"GRADO DE ESTUDIO Y SEXO"]
[null,null,null,null,null,null,null,null,null,"1º",null,"2º",null,"3º",null,"4º",null,"5º"]
[null,null,null,null,null,null,null,"H","M","H","M","H","M","H","M","H","M","H","M"]
["00",null,"TOTAL MATRÍCULA",null,null,null,null,{"$f":"SUM(H28:H33)+H27","v":0},0,0,0,0,0,0,0,0,0,0,0]
["01",null,"Promovidos de grado",null,null,null,"1/",{"$f":"SUM(J27,L27,N27,P27,R27)","v":0},0]
["02",null,"Requiere recuperación pedagógica",null,null,null,"2/",{"$f":"SUM(J28,L28,N28,P28,R28)","v":0},{"$f":"SUM(K28,M28,O28,Q28,S28)","v":0}]
["03",null,"Permanecen en el grado",null,null,null,"3/",{"$f":"SUM(J29,L29,N29,P29,R29)","v":0},{"$f":"SUM(K29,M29,O29,Q29,S29)","v":0}]
["04",null,"Trasladados a otras SS.EE",null,null,null,"4/",0,0]
["05",null,"Postergación de evaluación",null,null,null,"5/",0,0]
["06",null,"Retirados",null,null,null,"6/",0,0]
["07",null,"Fallecidos",null,null,null,null,0,0]
[]
[]
[]
[]
[]
[]
[]
[null,null,"102 - RETIRADOS POR GRADO DE ESTUDIO Y SEXO, SEGÚN MOTIVO"]
[null,null,"MOTIVO",null,null,null,null,"TOTAL",null,"GRADO DE ESTUDIO Y SEXO"]
[null,null,null,null,null,null,null,null,null,"1º",null,"2º",null,"3º",null,"4º",null,"5º"]
[null,null,null,null,null,null,null,"H","M","H","M","H","M","H","M","H","M","H","M"]
["00",null,"TOTAL RETIRADOS",null,null,null,null,{"$f":"SUM(H46:H53)","v":0},0,0,0,0,0,0,0,0,0,0,0]
["01",null,"Situación económica",null,null,null,null,{"$f":"SUM(J46,L46,N46,P46,R46,T46)","v":0},0]
["02",null,"Violencia",null,null,null,null,0,0]
["03",null,"Enfermedad",null,null,null,null,0,0]
["04",null,"Trabajo infantil",null,null,null,null,0,0]
["05",null,"Apoyo en labores agrícolas",null,null,null,null,0,0]
["06",null,"Adicción",null,null,null,null,0,0]
["07",null,"Embarazo",null,null,null,null,{"$f":"SUM(J52,L52,N52,P52,R52,T52)","v":0},{"$f":"SUM(K52,M52,O52,Q52,S52,U52)","v":0}]
["08",null,"Otros",null,null,null,null,0,0]
[null,null,"Nota.- Los totales de esta tabla deben ser iguales a los reportados en el rubro “Retirados” de la tabla 101"]
[null,null,"103. FALLECIDOS POR GRADO DE ESTUDIO Y SEXO, SEGÚN MOTIVO"]
[null,null,"MOTIVO",null,null,null,null,"TOTAL",null,"GRADO DE ESTUDIO Y SEXO"]
[null,null,null,null,null,null,null,null,null,"1º",null,"2º",null,"3º",null,"4º",null,"5º"]
[null,null,null,null,null,null,null,"H","M","H","M","H","M","H","M","H","M","H","M"]
["00",null,"TOTAL FALLECIDOS",null,null,null,null,{"$f":"SUM(H60:H64)","v":0},0,0,0,0,0,0,0,0,0,0,0]
["01",null,"Enfermedad",null,null,null,null,{"$f":"SUM(J60,L60,N60,P60,R60,T60)","v":0},0]
["02",null,"Accidente",null,null,null,null,0,0]
["03",null,"Suicidio",null,null,null,null,0,0]
["04",null,"Ocasionada por violencia familiar",null,null,null,null,0,0]
["05",null,"Otros",null,null,null,null,0,0]
[null,null,"Nota: Los totales de esta tabla deben ser iguales a los reportados en el rubro “Fallecidos” de la tabla 101."]
[null,null,"DATOS DEL RESPONSABLE DEL LLENADO DE LA CÉDULA"]
[]
[null,null,null,"NOMBRES Y APELLIDOS",null,null,null,null,"CARGO",null,null,"CORREO ELECTRÓNICO",null,null,null,null,"TELÉFONO"]
["1"]
["2"]
["3"]
[]
[]
[]
[]
["DIRECTOR(A)"]
["SUB DIRECTOR(A)"]
["DOCENTE"]
["COORDINADOR(A)"]
["ASESOR"]
["ADMINISTRATIVO"]
["ASISTENTE"]
["AUXILIAR"]
["SECRETARIA(O)"]
["ESTADÍSTICO"]
["ESPECIALISTA"]
["BIBLIOTECARIO"]
["CARE"]
["COMANDANTE PNP"]
["CONTADOR"]
["DAIP"]
["DIGITADOR(A)"]
["GERENTE"]
["JEFE ACADÉMICO"]
["JEFE ADMINISTRATIVO"]
["JEFE DE ÁREA"]
["JEFE DE LABORATORIO"]
["JEFE DE PERSONAL"]
["JEFE DE SEDE"]
["JEFE DE UNIDAD"]
["OFICINISTA"]
["OPERADOR DE SISTEMAS"]
["PERSONAL DE SERVICIO"]
["PROGRAMADOR"]
["PROMOTOR(A)"]
["PSICOLOGO"]
["REGISTRADOR(A)"]
["REPRESENTANTE LEGAL"]
["SOPORTE TECNOLOGICO"]
["TÉCNICO ADMINISTRATIVO"]
["TESORERO(A)"]
["TRABAJADOR SOCIAL"]
["TUTOR"]
["OTROS"]

{"sheet":"Enviar","index":2,"n_rows":9,"n_cols":3,"rows_kept":9,"cut":false,"hidden":true,"merged":[[0,0,0,3],[1,0,1,3]]}
["CENSO EDUCATIVO 2024"]
["RESULTADO DEL EJERCICIO EDUCATIVO"]
[]
[]
[null,"Paso 1:","Realice el ENVÍO con su clave EOL."]
[]
[null,"Paso 2:","Una vez realizado el ENVÍO,  Revise su constancia de envio."]
[]
[null,"  ADVERTENCIA","Asegúrese de registrar toda la información del nivel informante"]